[Event "Titled Tuesday Blitz April 25 Late 2023"]
[White "Kostiukov, Alexandr"]
[Black "Dargan, Paul A G"]
[WhiteFideId "14108100"]
[BlackFideId "416762"]
[WhiteElo "2202"]
[BlackElo "2042"]
[Result "1-0"]
[Round "04"]
[TimeControl "180+2"]
[Date "2023.04.25"]
[WhiteClock "0:00:17"]
[BlackClock "0:00:43"]

1. g3 {[%clk 0:02:59]}  d5 {[%clk 0:02:59]} 2. Bg2 {[%clk 0:02:59]}  Nc6 {[%clk 0:02:59]} 3. d3 {[%clk 0:02:51]}  Nf6 {[%clk 0:02:54]} 4. e4 {[%clk 0:02:50]}  dxe4 {[%clk 0:02:52]} 5. dxe4 {[%clk 0:02:51]}  Qxd1+ {[%clk 0:02:51]} 6. Kxd1 {[%clk 0:02:51]}  e5 {[%clk 0:02:50]} 7. f3 {[%clk 0:02:51]}  Bc5 {[%clk 0:02:46]} 8. Nd2 {[%clk 0:02:51]}  Be6 {[%clk 0:02:42]} 9. Bh3 {[%clk 0:02:51]}  Ke7 {[%clk 0:02:38]} 10. Bxe6 {[%clk 0:02:50]}  Kxe6 {[%clk 0:02:37]} 11. Nh3 {[%clk 0:02:50]}  h6 {[%clk 0:02:36]} 12. c3 {[%clk 0:02:50]}  Rad8 {[%clk 0:02:35]} 13. Ke2 {[%clk 0:02:50]}  Nh7 {[%clk 0:02:25]} 14. a4 {[%clk 0:02:49]}  a5 {[%clk 0:02:24]} 15. Nc4 {[%clk 0:02:46]}  f6 {[%clk 0:02:21]} 16. Nf2 {[%clk 0:02:40]}  g5 {[%clk 0:02:18]} 17. Nd3 {[%clk 0:02:37]}  Ba7 {[%clk 0:02:15]} 18. Be3 {[%clk 0:02:37]}  Bxe3 {[%clk 0:02:12]} 19. Nxe3 {[%clk 0:02:38]}  Ne7 {[%clk 0:02:11]} 20. Nc5+ {[%clk 0:02:36]}  Kf7 {[%clk 0:02:08]} 21. b4 {[%clk 0:02:15]}  b6 {[%clk 0:02:07]} 22. Nb3 {[%clk 0:02:15]}  axb4 {[%clk 0:02:05]} 23. cxb4 {[%clk 0:02:16]}  Nc6 {[%clk 0:02:03]} 24. Rhc1 {[%clk 0:02:12]}  Nxb4 {[%clk 0:01:55]} 25. Rxc7+ {[%clk 0:02:11]}  Ke6 {[%clk 0:01:54]} 26. Nf5 {[%clk 0:01:36]}  Rd7 {[%clk 0:01:45]} 27. Rc4 {[%clk 0:01:22]}  Nd3 {[%clk 0:01:33]} 28. Rd1 {[%clk 0:01:09]}  Rhd8 {[%clk 0:01:30]} 29. Rd2 {[%clk 0:00:59]}  Nf8 {[%clk 0:01:26]} 30. Rc6+ {[%clk 0:00:54]}  Kf7 {[%clk 0:01:24]} 31. Nxh6+ {[%clk 0:00:53]}  Kg6 {[%clk 0:01:17]} 32. Nf5 {[%clk 0:00:52]}  Kf7 {[%clk 0:01:05]} 33. Rxb6 {[%clk 0:00:44]}  Ne6 {[%clk 0:01:05]} 34. Rxe6 {[%clk 0:00:35]}  Kxe6 {[%clk 0:01:04]} 35. Rxd3 {[%clk 0:00:36]}  Rxd3 {[%clk 0:01:00]} 36. Nc5+ {[%clk 0:00:36]}  Kf7 {[%clk 0:00:58]} 37. Nxd3 {[%clk 0:00:36]}  Ra8 {[%clk 0:00:58]} 38. Nb2 {[%clk 0:00:25]}  Rb8 {[%clk 0:00:58]} 39. Nc4 {[%clk 0:00:23]}  Rb4 {[%clk 0:00:53]} 40. a5 {[%clk 0:00:23]}  Ke6 {[%clk 0:00:47]} 41. Nfd6 {[%clk 0:00:20]}  Ra4 {[%clk 0:00:47]} 42. h4 {[%clk 0:00:18]}  gxh4 {[%clk 0:00:46]} 43. gxh4 {[%clk 0:00:19]}  Kd7 {[%clk 0:00:43]} 44. Nb6+ {[%clk 0:00:17]} 1-0


[Site "https://www.chess.com"]

[Event "Titled Tuesday Blitz April 25 Late 2023"]
[White "Firouzja, Alireza"]
[Black "Kevlishvili, Robby"]
[WhiteFideId "12573981"]
[BlackFideId "1040634"]
[WhiteElo "2904"]
[BlackElo "2572"]
[Result "0-1"]
[Round "05"]
[TimeControl "180+2"]
[Date "2023.04.25"]
[WhiteClock "0:00:02"]
[BlackClock "0:00:14"]

1. e4 {[%clk 0:02:57]}  c5 {[%clk 0:02:57]} 2. Nf3 {[%clk 0:02:56]}  d6 {[%clk 0:02:58]} 3. d4 {[%clk 0:02:56]}  cxd4 {[%clk 0:02:58]} 4. Nxd4 {[%clk 0:02:57]}  Nf6 {[%clk 0:02:59]} 5. Nc3 {[%clk 0:02:57]}  a6 {[%clk 0:03:00]} 6. f3 {[%clk 0:02:51]}  e5 {[%clk 0:02:59]} 7. Nb3 {[%clk 0:02:51]}  Be6 {[%clk 0:03:00]} 8. Be3 {[%clk 0:02:52]}  h5 {[%clk 0:02:58]} 9. Qd2 {[%clk 0:02:52]}  Nbd7 {[%clk 0:02:58]} 10. O-O-O {[%clk 0:02:50]}  Rc8 {[%clk 0:02:57]} 11. Kb1 {[%clk 0:02:49]}  Be7 {[%clk 0:02:55]} 12. h3 {[%clk 0:02:49]}  b5 {[%clk 0:02:46]} 13. Bd3 {[%clk 0:02:49]}  h4 {[%clk 0:02:41]} 14. f4 {[%clk 0:02:49]}  Qc7 {[%clk 0:02:33]} 15. Rhg1 {[%clk 0:02:41]}  exf4 {[%clk 0:02:31]} 16. Bxf4 {[%clk 0:02:41]}  Ne5 {[%clk 0:02:32]} 17. Nd4 {[%clk 0:02:40]}  Nc4 {[%clk 0:02:08]} 18. Bxc4 {[%clk 0:02:38]}  Qxc4 {[%clk 0:02:08]} 19. Rge1 {[%clk 0:02:29]}  O-O {[%clk 0:01:59]} 20. Nf5 {[%clk 0:02:11]}  Rfe8 {[%clk 0:01:44]} 21. Nxe7+ {[%clk 0:01:22]}  Rxe7 {[%clk 0:01:44]} 22. Bxd6 {[%clk 0:01:23]}  Rd7 {[%clk 0:01:23]} 23. Qd4 {[%clk 0:00:43]}  b4 {[%clk 0:01:11]} 24. Qxc4 {[%clk 0:00:30]}  Rxc4 {[%clk 0:01:12]} 25. Na4 {[%clk 0:00:27]}  Rxe4 {[%clk 0:00:55]} 26. Bc5 {[%clk 0:00:05]}  Bf5 {[%clk 0:00:46]} 27. Ka1 {[%clk 0:00:02]}  Rd2 {[%clk 0:00:33]} 28. b3 {[%clk 0:00:01]}  Rxc2 {[%clk 0:00:27]} 29. Rxe4 {[%clk 0:00:01]}  Bxe4 {[%clk 0:00:25]} 30. Bxb4 {[%clk 0:00:01]}  Bxg2 {[%clk 0:00:25]} 31. Rd8+ {[%clk 0:00:01]}  Kh7 {[%clk 0:00:25]} 32. Be7 {[%clk 0:00:01]}  Bxh3 {[%clk 0:00:18]} 33. Rd4 {[%clk 0:00:01]}  Be6 {[%clk 0:00:14]} 34. Bxf6 {[%clk 0:00:01]}  gxf6 {[%clk 0:00:15]} 35. Rxh4+ {[%clk 0:00:01]}  Kg6 {[%clk 0:00:16]} 36. Rh1 {[%clk 0:00:02]}  f5 {[%clk 0:00:16]} 37. Kb1 {[%clk 0:00:02]}  Rg2 {[%clk 0:00:16]} 38. Nc5 {[%clk 0:00:02]}  f4 {[%clk 0:00:16]} 39. Rf1 {[%clk 0:00:02]}  Kg5 {[%clk 0:00:16]} 40. Ne4+ {[%clk 0:00:02]}  Kf5 {[%clk 0:00:15]} 41. Nc5 {[%clk 0:00:02]}  Bd5 {[%clk 0:00:14]} 42. b4 {[%clk 0:00:02]}  f3 {[%clk 0:00:14]} 43. a4 {[%clk 0:00:02]}  f2 {[%clk 0:00:14]} 0-1


[Site "https://www.chess.com"]

[Event "Titled Tuesday Blitz April 25 Late 2023"]
[White "Bortnyk, Mykola"]
[Black "Janik, Igor"]
[WhiteFideId "14120836"]
[BlackFideId "1159259"]
[WhiteElo "2582"]
[BlackElo "2484"]
[Result "0-1"]
[Round "05"]
[TimeControl "180+2"]
[Date "2023.04.25"]
[WhiteClock "0:00:01"]
[BlackClock "0:00:05"]

1. e4 {[%clk 0:03:00]}  c6 {[%clk 0:02:59]} 2. d4 {[%clk 0:02:58]}  d5 {[%clk 0:03:00]} 3. exd5 {[%clk 0:02:59]}  cxd5 {[%clk 0:03:00]} 4. c4 {[%clk 0:03:00]}  Nf6 {[%clk 0:03:00]} 5. Nc3 {[%clk 0:03:00]}  e6 {[%clk 0:03:01]} 6. Nf3 {[%clk 0:03:01]}  Bb4 {[%clk 0:03:01]} 7. cxd5 {[%clk 0:03:00]}  Nxd5 {[%clk 0:03:01]} 8. Bd2 {[%clk 0:03:01]}  O-O {[%clk 0:03:00]} 9. Bd3 {[%clk 0:03:02]}  Nxc3 {[%clk 0:02:59]} 10. bxc3 {[%clk 0:03:02]}  Be7 {[%clk 0:03:00]} 11. h4 {[%clk 0:03:00]}  h6 {[%clk 0:02:55]} 12. Qe2 {[%clk 0:02:57]}  Nd7 {[%clk 0:02:53]} 13. g4 {[%clk 0:02:53]}  Qa5 {[%clk 0:02:42]} 14. g5 {[%clk 0:02:48]}  h5 {[%clk 0:02:32]} 15. g6 {[%clk 0:02:48]}  Nf6 {[%clk 0:02:27]} 16. Rg1 {[%clk 0:02:45]}  Ng4 {[%clk 0:02:15]} 17. gxf7+ {[%clk 0:02:18]}  Rxf7 {[%clk 0:02:14]} 18. Rxg4 {[%clk 0:02:19]}  hxg4 {[%clk 0:02:12]} 19. Ne5 {[%clk 0:02:19]}  Rf6 {[%clk 0:01:49]} 20. Qxg4 {[%clk 0:02:11]}  Bd6 {[%clk 0:01:50]} 21. Qh5 {[%clk 0:02:06]}  Bxe5 {[%clk 0:01:45]} 22. dxe5 {[%clk 0:02:05]}  Rf5 {[%clk 0:01:46]} 23. Qe8+ {[%clk 0:01:34]}  Rf8 {[%clk 0:01:43]} 24. Qh5 {[%clk 0:01:30]}  Rf5 {[%clk 0:01:41]} 25. Bxf5 {[%clk 0:01:28]}  Qxe5+ {[%clk 0:01:41]} 26. Kf1 {[%clk 0:01:23]}  Qxf5 {[%clk 0:01:30]} 27. Qxf5 {[%clk 0:01:15]}  exf5 {[%clk 0:01:31]} 28. Re1 {[%clk 0:01:16]}  Kf7 {[%clk 0:01:29]} 29. Kg2 {[%clk 0:01:07]}  Be6 {[%clk 0:01:29]} 30. Re5 {[%clk 0:01:01]}  Rc8 {[%clk 0:01:24]} 31. Rb5 {[%clk 0:00:55]}  b6 {[%clk 0:01:24]} 32. a4 {[%clk 0:00:55]}  Bd7 {[%clk 0:01:12]} 33. Rb4 {[%clk 0:00:54]}  Rc5 {[%clk 0:01:11]} 34. Kg3 {[%clk 0:00:41]}  Rd5 {[%clk 0:01:09]} 35. Be3 {[%clk 0:00:39]}  Ke6 {[%clk 0:00:41]} 36. Kf4 {[%clk 0:00:34]}  Rd3 {[%clk 0:00:39]} 37. Bd4 {[%clk 0:00:27]}  Rd1 {[%clk 0:00:35]} 38. Bxg7 {[%clk 0:00:25]}  Rg1 {[%clk 0:00:34]} 39. Bf8 {[%clk 0:00:16]}  Rg8 {[%clk 0:00:17]} 40. Bh6 {[%clk 0:00:15]}  Rg4+ {[%clk 0:00:18]} 41. Ke3 {[%clk 0:00:14]}  Bxa4 {[%clk 0:00:10]} 42. Rxg4 {[%clk 0:00:10]}  fxg4 {[%clk 0:00:11]} 43. Bf4 {[%clk 0:00:10]}  Kf5 {[%clk 0:00:08]} 44. Bb8 {[%clk 0:00:10]}  a6 {[%clk 0:00:08]} 45. Bc7 {[%clk 0:00:10]}  b5 {[%clk 0:00:08]} 46. Bf4 {[%clk 0:00:07]}  Bb3 {[%clk 0:00:06]} 47. Bc7 {[%clk 0:00:06]}  Bf7 {[%clk 0:00:06]} 48. Bd8 {[%clk 0:00:06]}  Be8 {[%clk 0:00:04]} 49. Kd4 {[%clk 0:00:06]}  Kf4 {[%clk 0:00:04]} 50. Bc7+ {[%clk 0:00:06]}  Kf3 {[%clk 0:00:05]} 51. Bg3 {[%clk 0:00:07]}  a5 {[%clk 0:00:05]} 52. c4 {[%clk 0:00:07]}  b4 {[%clk 0:00:05]} 53. c5 {[%clk 0:00:07]}  a4 {[%clk 0:00:05]} 54. Kc4 {[%clk 0:00:06]}  a3 {[%clk 0:00:04]} 55. Kb3 {[%clk 0:00:03]}  Bf7+ {[%clk 0:00:04]} 56. Kc2 {[%clk 0:00:04]}  b3+ {[%clk 0:00:04]} 57. Kc3 {[%clk 0:00:01]}  b2 {[%clk 0:00:05]} 0-1


[Site "https://www.chess.com"]

[Event "Titled Tuesday Blitz April 25 Late 2023"]
[White "Bronstein, Or"]
[Black "Esipenko, Andrey"]
[WhiteFideId "2815770"]
[BlackFideId "24175439"]
[WhiteElo "2356"]
[BlackElo "2615"]
[Result "0-1"]
[Round "05"]
[TimeControl "180+2"]
[Date "2023.04.25"]
[WhiteClock "0:00:09"]
[BlackClock "0:00:04"]

1. d4 {[%clk 0:03:00]}  Nf6 {[%clk 0:02:59]} 2. c4 {[%clk 0:03:01]}  e6 {[%clk 0:02:59]} 3. Nf3 {[%clk 0:03:01]}  b6 {[%clk 0:02:58]} 4. g3 {[%clk 0:02:59]}  Ba6 {[%clk 0:02:59]} 5. b3 {[%clk 0:02:55]}  Bb4+ {[%clk 0:02:58]} 6. Bd2 {[%clk 0:02:56]}  Be7 {[%clk 0:02:58]} 7. Nc3 {[%clk 0:02:55]}  d5 {[%clk 0:02:58]} 8. cxd5 {[%clk 0:02:54]}  exd5 {[%clk 0:02:59]} 9. Bg2 {[%clk 0:02:55]}  O-O {[%clk 0:03:00]} 10. O-O {[%clk 0:02:55]}  Nbd7 {[%clk 0:03:00]} 11. Qc2 {[%clk 0:02:52]}  Re8 {[%clk 0:03:00]} 12. Rfd1 {[%clk 0:02:48]}  Nf8 {[%clk 0:02:49]} 13. Ne5 {[%clk 0:02:46]}  Bb7 {[%clk 0:02:48]} 14. Bg5 {[%clk 0:02:08]}  Ne6 {[%clk 0:02:45]} 15. Bxf6 {[%clk 0:02:09]}  Bxf6 {[%clk 0:02:46]} 16. e3 {[%clk 0:02:09]}  c6 {[%clk 0:02:42]} 17. b4 {[%clk 0:02:07]}  Rc8 {[%clk 0:02:41]} 18. Qb3 {[%clk 0:02:06]}  h5 {[%clk 0:02:37]} 19. h4 {[%clk 0:02:06]}  Qd6 {[%clk 0:02:30]} 20. Nd3 {[%clk 0:02:02]}  Red8 {[%clk 0:02:29]} 21. a4 {[%clk 0:01:59]}  Rc7 {[%clk 0:02:13]} 22. Rac1 {[%clk 0:01:55]}  g6 {[%clk 0:02:12]} 23. Ne2 {[%clk 0:01:52]}  a6 {[%clk 0:01:17]} 24. Nef4 {[%clk 0:01:41]}  Nxf4 {[%clk 0:01:16]} 25. Nxf4 {[%clk 0:01:42]}  b5 {[%clk 0:01:13]} 26. Nd3 {[%clk 0:01:32]}  Bc8 {[%clk 0:01:13]} 27. Nc5 {[%clk 0:01:24]}  Bg7 {[%clk 0:01:02]} 28. Ra1 {[%clk 0:01:20]}  Re8 {[%clk 0:00:59]} 29. Ra2 {[%clk 0:01:15]}  Rce7 {[%clk 0:00:56]} 30. Rc1 {[%clk 0:00:58]}  Kh7 {[%clk 0:00:56]} 31. axb5 {[%clk 0:00:53]}  axb5 {[%clk 0:00:56]} 32. Ra8 {[%clk 0:00:50]}  Bh6 {[%clk 0:00:48]} 33. Re1 {[%clk 0:00:35]}  Bf5 {[%clk 0:00:15]} 34. Rxe8 {[%clk 0:00:34]}  Rxe8 {[%clk 0:00:16]} 35. e4 {[%clk 0:00:32]}  Bg7 {[%clk 0:00:03]} 36. e5 {[%clk 0:00:27]}  Qe7 {[%clk 0:00:03]} 37. Ra1 {[%clk 0:00:27]}  f6 {[%clk 0:00:04]} 38. f4 {[%clk 0:00:26]}  g5 {[%clk 0:00:03]} 39. exf6 {[%clk 0:00:25]}  Qxf6 {[%clk 0:00:03]} 40. Kh2 {[%clk 0:00:17]}  gxf4 {[%clk 0:00:03]} 41. Rf1 {[%clk 0:00:17]}  Bh6 {[%clk 0:00:03]} 42. Qa3 {[%clk 0:00:13]}  Rg8 {[%clk 0:00:04]} 43. Rf3 {[%clk 0:00:09]}  fxg3+ {[%clk 0:00:04]} 44. Rxg3 {[%clk 0:00:10]}  Qxh4+ {[%clk 0:00:04]} 45. Bh3 {[%clk 0:00:10]}  Bf4 {[%clk 0:00:04]} 46. Qa7+ {[%clk 0:00:09]}  Kh6 {[%clk 0:00:04]} 0-1


[Site "https://www.chess.com"]

[Event "Titled Tuesday Blitz April 25 Late 2023"]
[White "Narayanan, Srinath"]
[Black "Duda, Jan-Krzysztof"]
[WhiteFideId "5018420"]
[BlackFideId "1170546"]
[WhiteElo "2438"]
[BlackElo "2790"]
[Result "0-1"]
[Round "05"]
[TimeControl "180+2"]
[Date "2023.04.25"]
[WhiteClock "0:00:09"]
[BlackClock "0:00:10"]

1. Nf3 {[%clk 0:03:00]}  Nf6 {[%clk 0:02:59]} 2. c4 {[%clk 0:03:01]}  c6 {[%clk 0:02:55]} 3. d4 {[%clk 0:02:58]}  d5 {[%clk 0:02:54]} 4. cxd5 {[%clk 0:02:59]}  cxd5 {[%clk 0:02:55]} 5. Nc3 {[%clk 0:02:59]}  Nc6 {[%clk 0:02:53]} 6. Bf4 {[%clk 0:03:00]}  Qb6 {[%clk 0:02:50]} 7. Qb3 {[%clk 0:02:25]}  Qxb3 {[%clk 0:02:12]} 8. axb3 {[%clk 0:02:24]}  Bf5 {[%clk 0:02:12]} 9. e3 {[%clk 0:02:23]}  e6 {[%clk 0:02:12]} 10. Bb5 {[%clk 0:02:21]}  Nd7 {[%clk 0:02:10]} 11. O-O {[%clk 0:02:08]}  f6 {[%clk 0:02:08]} 12. Bxc6 {[%clk 0:01:59]}  bxc6 {[%clk 0:02:08]} 13. Rfc1 {[%clk 0:02:00]}  g5 {[%clk 0:01:51]} 14. Bc7 {[%clk 0:01:53]}  Kf7 {[%clk 0:01:15]} 15. Ra6 {[%clk 0:01:44]}  c5 {[%clk 0:01:06]} 16. Rca1 {[%clk 0:01:20]}  g4 {[%clk 0:00:45]} 17. Nd2 {[%clk 0:01:07]}  cxd4 {[%clk 0:00:28]} 18. exd4 {[%clk 0:01:08]}  Bb4 {[%clk 0:00:20]} 19. Rxa7 {[%clk 0:01:05]}  Rxa7 {[%clk 0:00:21]} 20. Rxa7 {[%clk 0:01:06]}  Rc8 {[%clk 0:00:21]} 21. Nf1 {[%clk 0:01:02]}  Ke8 {[%clk 0:00:20]} 22. Ne3 {[%clk 0:01:00]}  Bg6 {[%clk 0:00:07]} 23. Nxg4 {[%clk 0:00:58]}  h5 {[%clk 0:00:08]} 24. Ne3 {[%clk 0:00:57]}  Be7 {[%clk 0:00:08]} 25. h4 {[%clk 0:00:53]}  Bd3 {[%clk 0:00:08]} 26. g3 {[%clk 0:00:51]}  Nb8 {[%clk 0:00:08]} 27. Bxb8 {[%clk 0:00:14]}  Rxb8 {[%clk 0:00:09]} 28. Nexd5 {[%clk 0:00:15]}  exd5 {[%clk 0:00:09]} 29. Nxd5 {[%clk 0:00:16]}  Bd8 {[%clk 0:00:08]} 30. Nf4 {[%clk 0:00:17]}  Be4 {[%clk 0:00:05]} 31. Nxh5 {[%clk 0:00:15]}  Bb7 {[%clk 0:00:02]} 32. Ra4 {[%clk 0:00:10]}  Rc8 {[%clk 0:00:02]} 33. Rc4 {[%clk 0:00:10]}  Ra8 {[%clk 0:00:02]} 34. Ra4 {[%clk 0:00:10]}  Rc8 {[%clk 0:00:03]} 35. Rc4 {[%clk 0:00:11]}  Ra8 {[%clk 0:00:03]} 36. Ra4 {[%clk 0:00:11]}  Ke7 {[%clk 0:00:03]} 37. Rxa8 {[%clk 0:00:10]}  Bxa8 {[%clk 0:00:03]} 38. Nf4 {[%clk 0:00:09]}  Bb6 {[%clk 0:00:04]} 39. d5 {[%clk 0:00:08]}  Bc7 {[%clk 0:00:04]} 40. b4 {[%clk 0:00:05]}  Bxf4 {[%clk 0:00:04]} 41. gxf4 {[%clk 0:00:06]}  Bxd5 {[%clk 0:00:04]} 42. h5 {[%clk 0:00:06]}  Bf3 {[%clk 0:00:04]} 43. h6 {[%clk 0:00:06]}  Kf7 {[%clk 0:00:04]} 44. Kh2 {[%clk 0:00:06]}  Kg6 {[%clk 0:00:05]} 45. Kg3 {[%clk 0:00:06]}  Bc6 {[%clk 0:00:05]} 46. f5+ {[%clk 0:00:05]}  Kxh6 {[%clk 0:00:05]} 47. Kg4 {[%clk 0:00:05]}  Bb7 {[%clk 0:00:04]} 48. Kh4 {[%clk 0:00:05]}  Be4 {[%clk 0:00:03]} 49. Kg4 {[%clk 0:00:06]}  Bc6 {[%clk 0:00:04]} 50. Kh4 {[%clk 0:00:06]}  Kg7 {[%clk 0:00:04]} 51. Kg4 {[%clk 0:00:06]}  Kf7 {[%clk 0:00:04]} 52. Kf4 {[%clk 0:00:07]}  Ke7 {[%clk 0:00:05]} 53. Kg4 {[%clk 0:00:07]}  Kd6 {[%clk 0:00:05]} 54. f4 {[%clk 0:00:07]}  Be8 {[%clk 0:00:04]} 55. b5 {[%clk 0:00:03]}  Kc5 {[%clk 0:00:04]} 56. Kf3 {[%clk 0:00:03]}  Kxb5 {[%clk 0:00:05]} 57. Ke4 {[%clk 0:00:04]}  Bf7 {[%clk 0:00:05]} 58. Kd4 {[%clk 0:00:04]}  Kb4 {[%clk 0:00:05]} 59. Ke4 {[%clk 0:00:03]}  Kc4 {[%clk 0:00:06]} 60. Ke3 {[%clk 0:00:02]}  Bd5 {[%clk 0:00:05]} 61. Kf2 {[%clk 0:00:01]}  Kd4 {[%clk 0:00:06]} 62. Kg3 {[%clk 0:00:02]}  Bb3 {[%clk 0:00:05]} 63. Kg4 {[%clk 0:00:02]}  Ke4 {[%clk 0:00:06]} 64. Kg3 {[%clk 0:00:01]}  Kxf5 {[%clk 0:00:06]} 65. Kf3 {[%clk 0:00:02]}  Ke6 {[%clk 0:00:06]} 66. Ke4 {[%clk 0:00:02]}  Kd6 {[%clk 0:00:05]} 67. Kd4 {[%clk 0:00:03]}  Ke6 {[%clk 0:00:05]} 68. Ke4 {[%clk 0:00:04]}  Bd5+ {[%clk 0:00:06]} 69. Kd4 {[%clk 0:00:04]}  Bb7 {[%clk 0:00:06]} 70. b4 {[%clk 0:00:04]}  Kf5 {[%clk 0:00:06]} 71. Ke3 {[%clk 0:00:05]}  Kg4 {[%clk 0:00:07]} 72. b5 {[%clk 0:00:06]}  f5 {[%clk 0:00:07]} 73. b6 {[%clk 0:00:07]}  Kg3 {[%clk 0:00:08]} 74. Kd4 {[%clk 0:00:07]}  Kxf4 {[%clk 0:00:08]} 75. Kc5 {[%clk 0:00:08]}  Kg3 {[%clk 0:00:09]} 76. Kd6 {[%clk 0:00:09]}  f4 {[%clk 0:00:10]} 0-1


[Site "https://www.chess.com"]

[Event "Titled Tuesday Blitz April 25 Late 2023"]
[White "Holt, Conrad"]
[Black "Martinez Alcantara, Jose Eduardo"]
[WhiteFideId "2034387"]
[BlackFideId "3805662"]
[WhiteElo "2592"]
[BlackElo "2711"]
[Result "0-1"]
[Round "05"]
[TimeControl "180+2"]
[Date "2023.04.25"]
[WhiteClock "0:00:01"]
[BlackClock "0:00:19"]

1. d4 {[%clk 0:03:00]}  Nf6 {[%clk 0:02:58]} 2. c4 {[%clk 0:03:00]}  e6 {[%clk 0:02:58]} 3. Nf3 {[%clk 0:03:00]}  Bb4+ {[%clk 0:02:58]} 4. Nbd2 {[%clk 0:02:59]}  O-O {[%clk 0:02:57]} 5. a3 {[%clk 0:02:57]}  Be7 {[%clk 0:02:58]} 6. e3 {[%clk 0:02:55]}  c5 {[%clk 0:02:56]} 7. dxc5 {[%clk 0:02:54]}  Bxc5 {[%clk 0:02:55]} 8. b4 {[%clk 0:02:54]}  Be7 {[%clk 0:02:55]} 9. Bb2 {[%clk 0:02:54]}  d6 {[%clk 0:02:56]} 10. Bd3 {[%clk 0:02:53]}  Qc7 {[%clk 0:02:49]} 11. O-O {[%clk 0:02:50]}  Nbd7 {[%clk 0:02:47]} 12. Qc2 {[%clk 0:02:46]}  b6 {[%clk 0:02:28]} 13. Rfd1 {[%clk 0:02:37]}  Bb7 {[%clk 0:02:28]} 14. Nd4 {[%clk 0:02:35]}  a6 {[%clk 0:02:25]} 15. Rac1 {[%clk 0:02:32]}  Rac8 {[%clk 0:02:24]} 16. Qb1 {[%clk 0:02:25]}  Qb8 {[%clk 0:02:24]} 17. N2f3 {[%clk 0:02:22]}  h6 {[%clk 0:02:13]} 18. Ba1 {[%clk 0:02:13]}  Rfe8 {[%clk 0:02:13]} 19. Be2 {[%clk 0:02:11]}  Bf8 {[%clk 0:02:05]} 20. Nd2 {[%clk 0:02:00]}  Ne5 {[%clk 0:02:00]} 21. N4b3 {[%clk 0:01:54]}  Ned7 {[%clk 0:01:36]} 22. a4 {[%clk 0:01:36]}  Qa8 {[%clk 0:01:30]} 23. Bf1 {[%clk 0:01:31]}  a5 {[%clk 0:01:19]} 24. bxa5 {[%clk 0:01:26]}  bxa5 {[%clk 0:01:20]} 25. Bc3 {[%clk 0:01:23]}  Ne4 {[%clk 0:01:11]} 26. Nxe4 {[%clk 0:01:17]}  Bxe4 {[%clk 0:01:11]} 27. Qa2 {[%clk 0:01:17]}  Nc5 {[%clk 0:01:08]} 28. Nxa5 {[%clk 0:01:11]}  Rb8 {[%clk 0:01:09]} 29. f3 {[%clk 0:01:01]}  Bg6 {[%clk 0:01:08]} 30. e4 {[%clk 0:00:58]}  Rb6 {[%clk 0:01:08]} 31. Rb1 {[%clk 0:00:57]}  Ra6 {[%clk 0:01:08]} 32. Rb5 {[%clk 0:00:55]}  f5 {[%clk 0:01:02]} 33. exf5 {[%clk 0:00:45]}  Bxf5 {[%clk 0:01:02]} 34. Bb4 {[%clk 0:00:38]}  Rc8 {[%clk 0:01:00]} 35. Qa3 {[%clk 0:00:28]}  Bg6 {[%clk 0:00:45]} 36. Bxc5 {[%clk 0:00:18]}  Rxc5 {[%clk 0:00:44]} 37. Rxc5 {[%clk 0:00:08]}  dxc5 {[%clk 0:00:45]} 38. Nb3 {[%clk 0:00:08]}  Rxa4 {[%clk 0:00:43]} 39. Qb2 {[%clk 0:00:09]}  Rb4 {[%clk 0:00:38]} 40. Ra1 {[%clk 0:00:01]}  Rxb3 {[%clk 0:00:35]} 41. Qe5 {[%clk 0:00:01]}  Qc6 {[%clk 0:00:31]} 42. Ra7 {[%clk 0:00:01]}  Bf7 {[%clk 0:00:20]} 43. Qe1 {[%clk 0:00:01]}  Rb7 {[%clk 0:00:19]} 0-1


[Site "https://www.chess.com"]

[Event "Titled Tuesday Blitz April 25 Late 2023"]
[White "Sviridov, Valery"]
[Black "Sarana, Alexey"]
[WhiteFideId "4120680"]
[BlackFideId "24133795"]
[WhiteElo "2457"]
[BlackElo "2714"]
[Result "0-1"]
[Round "05"]
[TimeControl "180+2"]
[Date "2023.04.25"]
[WhiteClock "0:00:14"]
[BlackClock "0:00:11"]

1. d4 {[%clk 0:03:00]}  Nf6 {[%clk 0:02:49]} 2. Nf3 {[%clk 0:03:00]}  d5 {[%clk 0:02:48]} 3. e3 {[%clk 0:02:58]}  e6 {[%clk 0:02:47]} 4. Nbd2 {[%clk 0:02:56]}  b6 {[%clk 0:02:47]} 5. Bd3 {[%clk 0:02:56]}  Bb7 {[%clk 0:02:48]} 6. O-O {[%clk 0:02:56]}  Nbd7 {[%clk 0:02:48]} 7. b3 {[%clk 0:02:53]}  Bd6 {[%clk 0:02:46]} 8. Bb2 {[%clk 0:02:53]}  Ne4 {[%clk 0:02:44]} 9. c4 {[%clk 0:02:53]}  O-O {[%clk 0:02:43]} 10. Qc2 {[%clk 0:02:51]}  f5 {[%clk 0:02:43]} 11. Rac1 {[%clk 0:02:48]}  a6 {[%clk 0:02:42]} 12. Ne5 {[%clk 0:02:39]}  Nxe5 {[%clk 0:02:36]} 13. dxe5 {[%clk 0:02:40]}  Bb4 {[%clk 0:02:36]} 14. Nf3 {[%clk 0:02:32]}  Rc8 {[%clk 0:02:34]} 15. cxd5 {[%clk 0:02:20]}  exd5 {[%clk 0:02:33]} 16. Rfd1 {[%clk 0:02:16]}  Qe7 {[%clk 0:02:28]} 17. Qe2 {[%clk 0:02:11]}  b5 {[%clk 0:02:21]} 18. g3 {[%clk 0:02:08]}  c5 {[%clk 0:02:03]} 19. a3 {[%clk 0:02:00]}  Ba5 {[%clk 0:02:04]} 20. b4 {[%clk 0:02:00]}  cxb4 {[%clk 0:02:00]} 21. axb4 {[%clk 0:02:01]}  Bxb4 {[%clk 0:02:00]} 22. Bd4 {[%clk 0:01:54]}  Nc3 {[%clk 0:01:46]} 23. Bxc3 {[%clk 0:01:33]}  Bxc3 {[%clk 0:01:47]} 24. Bb1 {[%clk 0:01:26]}  Bxe5 {[%clk 0:01:39]} 25. Rxc8 {[%clk 0:01:27]}  Rxc8 {[%clk 0:01:38]} 26. Bxf5 {[%clk 0:01:27]}  Rf8 {[%clk 0:01:38]} 27. Bh3 {[%clk 0:01:26]}  Bc3 {[%clk 0:01:16]} 28. Bg2 {[%clk 0:01:22]}  b4 {[%clk 0:01:16]} 29. h4 {[%clk 0:01:18]}  Kh8 {[%clk 0:01:14]} 30. Ng5 {[%clk 0:01:17]}  h6 {[%clk 0:00:53]} 31. Nh3 {[%clk 0:01:16]}  Be5 {[%clk 0:00:54]} 32. Qa2 {[%clk 0:00:54]}  d4 {[%clk 0:00:32]} 33. exd4 {[%clk 0:00:46]}  Bxg2 {[%clk 0:00:32]} 34. Kxg2 {[%clk 0:00:47]}  Qb7+ {[%clk 0:00:32]} 35. Kg1 {[%clk 0:00:47]}  b3 {[%clk 0:00:31]} 36. Qe2 {[%clk 0:00:45]}  Bd6 {[%clk 0:00:28]} 37. Qe6 {[%clk 0:00:33]}  Rf6 {[%clk 0:00:19]} 38. Qe8+ {[%clk 0:00:30]}  Kh7 {[%clk 0:00:19]} 39. d5 {[%clk 0:00:30]}  b2 {[%clk 0:00:18]} 40. Qe4+ {[%clk 0:00:30]}  Kh8 {[%clk 0:00:18]} 41. Rb1 {[%clk 0:00:18]}  Rf8 {[%clk 0:00:18]} 42. Qd4 {[%clk 0:00:17]}  Rb8 {[%clk 0:00:18]} 43. Nf4 {[%clk 0:00:17]}  Bxf4 {[%clk 0:00:17]} 44. gxf4 {[%clk 0:00:17]}  Qb3 {[%clk 0:00:13]} 45. d6 {[%clk 0:00:17]}  Qc2 {[%clk 0:00:13]} 46. d7 {[%clk 0:00:12]}  Qxb1+ {[%clk 0:00:13]} 47. Kh2 {[%clk 0:00:13]}  Qf5 {[%clk 0:00:10]} 48. d8=Q+ {[%clk 0:00:13]}  Rxd8 {[%clk 0:00:10]} 49. Qxd8+ {[%clk 0:00:14]}  Kh7 {[%clk 0:00:11]} 50. Qb8 {[%clk 0:00:14]}  b1=Q {[%clk 0:00:11]} 0-1


[Site "https://www.chess.com"]